{"text_format":"1","workbook":"xlsx","n_sheets":9,"sheets":["Información del grupo","Productos de Nuevo Conocimiento","DTI","Apropiación Social","Formación","Patentes","Recursos Obtenidos","Calculadora","Resultado"],"not_rendered":{"charts":0,"images":1,"macros":1,"external_links":0,"defined_names":1,"comments":0,"pivot_tables":0},"unopened":[],"bounds":{"document_bytes":16777216,"sheet_cells":100000,"rows_first":2000,"rows_last":500,"rows_between":2000,"halvings":0,"cell_chars":16384,"cell_head_chars":4096},"cells_cut":0,"cells_raw":0,"read":"whole","date_system":"1900"}

{"sheet":"Información del grupo","index":0,"n_rows":13,"n_cols":9,"rows_kept":13,"cut":false,"hidden":false,"merged":[[15,8,19,13],[0,8,2,13],[3,8,4,13],[5,8,5,13],[6,8,6,13],[14,8,14,13]]}
[null,null,null,null,null,null,null,null,"CÓMITE PARA EL DESARROLLO DE LA INVESTIGACIÓN -CODI-"]
[]
[]
[null,null,null,null,null,null,null,null,"VICERRECTORÍA DE INVESTIGACIÓN"]
[]
[null,null,null,null,null,null,null,null,"ESTRATEGIA DE SOSTENIBILIDAD 2018- 2019"]
[]
[]
[null,null,null,null,null,null,null,null,"Nombre del Grupo"]
[null,null,null,null,null,null,null,null,"Código del Grupo"]
[null,null,null,null,null,null,null,null,"Coordinador del Grupo"]
[null,null,null,null,null,null,null,null,"Dependencia del Grupo"]
[null,null,null,null,null,null,null,null,"Centro de Investigación que presenta"]

{"sheet":"Productos de Nuevo Conocimiento","index":1,"n_rows":34,"n_cols":26,"rows_kept":34,"cut":false,"hidden":false,"merged":[[9,14,9,18],[31,15,33,15],[32,14,33,14],[26,16,33,18],[26,13,26,15],[25,14,25,18],[13,14,14,18],[13,13,14,13],[15,14,21,18],[15,13,21,13],[10,14,10,18],[12,14,12,18],[22,14,22,18],[23,14,23,18],[11,14,11,18],[24,14,24,18],[7,13,7,18],[8,13,8,18],[0,13,0,18],[1,13,1,15],[2,13,2,15],[4,13,4,15],[5,13,5,15],[6,13,6,16],[3,13,3,15]]}
["Número","Tipo de Producto","Título del Producto","Autor Principal del Grupo","Medio de Publicación","Año","DOI/URL","Criterio","Verificación del Centro de Investigación","Categoría","Observaciones",null,null,"Estimación de la Puntuación",null,null,null,null,null,null,null,null,null,null,null,"Estado"]
[null,null,null,null,null,null,null,null,null,null,null,null,null,"Cuartil de la Publicación",null,null,"Puntos por cuartil","Cantidad de Documentos","Puntuación",null,null,null,null,null,null,"Aprobado"]
[null,null,null,null,null,null,null,null,null,null,null,null,null,"Top",null,null,10,{"$f":"Calculadora!C3","v":0},{"$f":"R3*Q3","v":0},null,null,null,null,null,null,"No Aprobado"]
[null,null,null,null,null,null,null,null,null,null,null,null,null,"Categoría I",null,null,6,{"$f":"Calculadora!C4","v":0},{"$f":"R4*Q4","v":0},null,null,null,null,null,null,"Simulación"]
[null,null,null,null,null,null,null,null,null,null,null,null,null,"Categoría II",null,null,3,{"$f":"Calculadora!C5","v":0},0]
[null,null,null,null,null,null,null,null,null,null,null,null,null,"Categoría III",null,null,2,{"$f":"Calculadora!C6","v":0},0]
[null,null,null,null,null,null,null,null,null,null,null,null,null,"Puntuación Total",null,null,null,{"$f":"SUM(R3:R6)","v":0},{"$f":"SUM(S3:S6)","v":0}]
[]
[null,null,null,null,null,null,null,null,null,null,null,null,null,"Instrucciones"]
[null,null,null,null,null,null,null,null,null,null,null,null,null,"Columna","Descripción"]
[null,null,null,null,null,null,null,null,null,null,null,null,null,"Número","Es un consecutivo. Por favor mantener el orden para facilitar la solicitud de aclaraciones."]
[null,null,null,null,null,null,null,null,null,null,null,null,null,"Tipo de Producto","Elegir el tipo de producto"]
[null,null,null,null,null,null,null,null,null,null,null,null,null,"Título del producto","Título del producto tal y como fue publicado"]
[null,null,null,null,null,null,null,null,null,null,null,null,null,"Autor principal del grupo","Persona que es integrante del grupo y que aparece como autor del producto. Incluir solo uno."]
[]
[null,null,null,null,null,null,null,null,null,null,null,null,null,"Medio de Publicación","Dependiendo del tipo de producto:\n\n-En caso de artículos, incluir la revista donde ha sido publicado el artículo.\n-En caso de libros, incluir la editorial donde ha sido publicado el libro.\n-En caso de capítulos de libro, incluir la editorial donde ha sido publicado el capítulo.\n-En caso de patentes, incluir si cuenta con estado de explotación o no.\n-En caso de obras artísticas, incluir el concurso donde ha sido presentada la obra"]
[]
[]
[]
[]
[]
[]
[null,null,null,null,null,null,null,null,null,null,null,null,null,"Año","Año en que ha sido publicada la obra.Solo se admite apartir del 1 de enero 2018"]
[null,null,null,null,null,null,null,null,null,null,null,null,null,"Criterio de decisión","Criterio bajo el cual se determina la categoría de la obra"]
[null,null,null,null,null,null,null,null,null,null,null,null,null,"Verificación del Centro de Investigación","Este es el espacio donde el centro da el visto bueno para el producto ingresado, una vez ha revisado que la información es verídica y cumple los criterios de los términos de referencia:\n\n-Aprobado, cuando el centro de investigación ha confirmado la información\n-No Aprobado, si el centro no ha dado visto bueno al producto\n-Simulación si el grupo desea estimar si ya cumplió con la puntuación requerida"]
[null,null,null,null,null,null,null,null,null,null,null,null,null,"Observaciones","Espacio para realizar observaciones sobre el producto"]
[]
[null,null,null,null,null,null,null,null,null,null,null,null,null,"Tipos de producto validados","Categoría de los productos"]
[null,null,null,null,null,null,null,null,null,null,null,null,null,"Artículo","Top"]
[null,null,null,null,null,null,null,null,null,null,null,null,null,"Libro","Categoría I"]
[null,null,null,null,null,null,null,null,null,null,null,null,null,"Capítulo de Libro","Categoría II"]
[null,null,null,null,null,null,null,null,null,null,null,null,null,"Obra artística","Categoría III"]
[null,null,null,null,null,null,null,null,null,null,null,null,null,"Variedades vegetales y/o animales"]
[null,null,null,null,null,null,null,null,null,null,null,null,null,"Patentes"]

{"sheet":"DTI","index":2,"n_rows":25,"n_cols":19,"rows_kept":25,"cut":false,"hidden":false,"merged":[[16,12,16,16],[17,12,17,16],[18,12,18,16],[19,11,19,13],[19,14,26,16],[24,13,26,13],[25,12,26,12],[23,11,26,11],[15,12,15,16],[5,11,5,14],[6,11,6,16],[7,11,7,16],[8,12,8,16],[9,12,9,16],[11,12,11,16],[10,12,10,16],[12,11,13,11],[12,12,13,16],[14,12,14,16],[0,11,0,16],[1,11,1,13],[2,11,2,13],[3,11,3,13],[4,11,4,13]]}
["Número","Tipo de Producto","Título del Producto","Autor Principal del Grupo","Año","Puntos Asignados","Verificación del Centro de Investigación","Categoría","Observaciones",null,null,"Estimación de la Puntuación",null,null,null,null,null,null,"Estado"]
[null,null,null,null,null,null,null,null,null,null,null,"Cuartil de la Publicación",null,null,"Puntos por cuartil","Cantidad de Documentos","Puntuación",null,"Aprobado"]
[null,null,null,null,null,null,null,null,null,null,null,"Top",null,null,10,{"$f":"Calculadora!F3","v":0},{"$f":"P3*O3","v":0},null,"No Aprobado"]
[null,null,null,null,null,null,null,null,null,null,null,"Categoría I",null,null,6,{"$f":"Calculadora!F4","v":0},{"$f":"P4*O4","v":0},null,"Simulación"]
[null,null,null,null,null,null,null,null,null,null,null,"Categoría II",null,null,3,{"$f":"Calculadora!F5","v":0},0]
[null,null,null,null,null,null,null,null,null,null,null,"Puntuación Total",null,null,null,{"$f":"SUM(P3:P5)","v":0},{"$f":"SUM(Q3:Q5)","v":0}]
[]
[null,null,null,null,null,null,null,null,null,null,null,"Instrucciones"]
[null,null,null,null,null,null,null,null,null,null,null,"Columna","Descripción"]
[null,null,null,null,null,null,null,null,null,null,null,"Número","Es un consecutivo. Por favor mantener el orden para facilitar la solicitud de aclaraciones."]
[null,null,null,null,null,null,null,null,null,null,null,"Tipo de Producto","Elegir el tipo de producto"]
[null,null,null,null,null,null,null,null,null,null,null,"Título del producto","Título del producto tal y como fue publicado"]
[null,null,null,null,null,null,null,null,null,null,null,"Autor principal del grupo","Persona que es integrante del grupo y que aparece como autor del producto. Incluir solo uno."]
[]
[null,null,null,null,null,null,null,null,null,null,null,"Año","Año en que ha sido publicada la obra.Solo se admite apartir del 1 de enero 2018"]
[null,null,null,null,null,null,null,null,null,null,null,"Puntos asignados","Indicar la cantidad de puntos que le asignó el Comité de Asignación de Puntaje"]
[null,null,null,null,null,null,null,null,null,null,null,"Verificación del Centro de Investigación","Este es el espacio donde el centro da el visto bueno para el producto ingresado, una vez ha revisado que la información es verídica y cumple los criterios de los términos de referencia:\n\n-Aprobado, cuando el centro de investigación ha confirmado la información\n-No Aprobado, si el centro no ha dado visto bueno al producto\n-Simulación si el grupo desea estimar si ya cumplió con la puntuación requerida"]
[null,null,null,null,null,null,null,null,null,null,null,"Categoría","Categoría que tiene el producto de desarrollo tecnológico e innovación"]
[null,null,null,null,null,null,null,null,null,null,null,"Observaciones","Espacio para realizar observaciones sobre el producto"]
[]
[null,null,null,null,null,null,null,null,null,null,null,"Tipos de producto validados","Categoría de los productos"]
[null,null,null,null,null,null,null,null,null,null,null,"Producción Técnica y Tecnológica","Top"]
[null,null,null,null,null,null,null,null,null,null,null,"Normas y regulaciones","Categoría I"]
[null,null,null,null,null,null,null,null,null,null,null,null,"Categoría II"]
[null,null,null,null,null,null,null,null,null,null,null,null,"Categoría III"]

{"sheet":"Apropiación Social","index":3,"n_rows":31,"n_cols":19,"rows_kept":31,"cut":false,"hidden":false,"merged":[[23,13,23,17],[24,13,24,17],[25,13,25,17],[26,12,26,14],[26,15,32,17],[31,14,32,14],[31,13,32,13],[31,12,32,12],[22,13,22,17],[5,12,5,15],[6,12,6,17],[7,12,7,17],[8,13,8,17],[9,13,9,17],[11,13,11,17],[10,13,10,17],[12,12,13,12],[12,13,13,17],[14,12,20,12],[14,13,20,17],[21,13,21,17],[0,12,0,17],[1,12,1,14],[2,12,2,14],[3,12,3,14],[4,12,4,14]]}
["Número","Tipo de Producto","Título del Producto","Autor Principal del Grupo","Medio de Publicación","Año","Criterio","Verificación del Centro de Investigación","Categoría","Observaciones",null,null,"Estimación de la Puntuación",null,null,null,null,null,"Estado"]
[null,null,null,null,null,null,null,null,null,null,null,null,"Cuartil de la Publicación",null,null,"Puntos por cuartil","Cantidad de Documentos","Puntuación","Aprobado"]
[null,null,null,null,null,null,null,null,null,null,null,null,"Top",null,null,5,{"$f":"Calculadora!I4","v":0},{"$f":"Q3*P3","v":0},"No Aprobado"]
[null,null,null,null,null,null,null,null,null,null,null,null,"Categoría I",null,null,3,{"$f":"Calculadora!I5","v":0},{"$f":"Q4*P4","v":0},"Simulación"]
[null,null,null,null,null,null,null,null,null,null,null,null,"Categoría II",null,null,1,{"$f":"Calculadora!I6","v":0},0]
[null,null,null,null,null,null,null,null,null,null,null,null,"Puntuación Total",null,null,null,{"$f":"SUM(Q3:Q5)","v":0},{"$f":"SUM(R3:R5)","v":0}]
[]
[null,null,null,null,null,null,null,null,null,null,null,null,"Instrucciones"]
[null,null,null,null,null,null,null,null,null,null,null,null,"Columna","Descripción"]
[null,null,null,null,null,null,null,null,null,null,null,null,"Número","Es un consecutivo. Por favor mantener el orden para facilitar la solicitud de aclaraciones."]
[null,null,null,null,null,null,null,null,null,null,null,null,"Tipo de producto","Elegir el tipo de producto"]
[null,null,null,null,null,null,null,null,null,null,null,null,"Título del producto","Título del producto tal y como fue publicado"]
[null,null,null,null,null,null,null,null,null,null,null,null,"Autor principal del grupo","Persona que es integrante del grupo y que aparece como autor del producto. Incluir solo uno."]
[]
[null,null,null,null,null,null,null,null,null,null,null,null,"Medio de Publicación","Dependiendo del tipo de producto:\n\n-En caso de espacios de formación científica, incluir la entidad con la cual se realizó la alianza\n-En caso de generación de contenidos divulgativos, incluir lel medio con el cual se realizó el producto\n-En caso de proyectos de participación ciudadana, incluir el número de documento donde se dio el visto bueno al producto\n-En caso de patentes, incluir si cuenta con estado de explotación o no.\n-En caso de obras artísticas, incluir el concurso donde ha sido presentada la obra"]
[]
[]
[]
[]
[]
[]
[null,null,null,null,null,null,null,null,null,null,null,null,"Año","Año en que ha sido publicada la obra.Solo se admite apartir del 1 de enero 2018"]
[null,null,null,null,null,null,null,null,null,null,null,null,"Criterio de decisión","Criterio bajo el cual se determina la categoría de la obra"]
[null,null,null,null,null,null,null,null,null,null,null,null,"Verificación del Centro de Investigación","Este es el espacio donde el centro da el visto bueno para el producto ingresado, una vez ha revisado que la información es verídica y cumple los criterios de los términos de referencia:\n\n-Aprobado, cuando el centro de investigación ha confirmado la información\n-No Aprobado, si el centro no ha dado visto bueno al producto\n-Simulación si el grupo desea estimar si ya cumplió con la puntuación requerida"]
[null,null,null,null,null,null,null,null,null,null,null,null,"Categoría","Categoría que tiene el producto de apropiación social del conocimiento"]
[null,null,null,null,null,null,null,null,null,null,null,null,"Observaciones","Espacio para realizar observaciones sobre el producto"]
[]
[null,null,null,null,null,null,null,null,null,null,null,null,"Tipos de producto validados","Categoría de los productos"]
[null,null,null,null,null,null,null,null,null,null,null,null,"Espacios de formación científica","Top"]
[null,null,null,null,null,null,null,null,null,null,null,null,"Generación de contenidos divulgativos","Categoría I"]
[null,null,null,null,null,null,null,null,null,null,null,null,"Proyectos con participación Ciudadana","Categoría II"]

{"sheet":"Formación","index":4,"n_rows":38,"n_cols":19,"rows_kept":38,"cut":false,"hidden":false,"merged":[[35,12,37,12],[17,11,18,11],[17,12,18,16],[19,11,25,11],[19,12,25,16],[27,12,27,16],[28,12,28,16],[10,11,10,16],[11,12,11,16],[12,12,12,16],[29,12,29,16],[30,11,30,13],[14,12,14,16],[15,12,15,16],[16,12,16,16],[26,12,26,16],[13,12,13,16],[7,11,7,13],[5,11,5,13],[6,11,6,13],[8,11,8,14],[9,11,9,16],[0,11,0,16],[1,11,1,13],[2,11,2,13],[3,11,3,13],[4,11,4,13]]}
["Número","Tipo de producto","Nombre del Estudiante","Número de identificación del estudiante","Título del trabajo de grado","Tutor principal del grupo","Programa Académico","Año de graduación o Matrícula","Verificación del Centro de Investigación","Observaciones",null,"Estimación de la Puntuación",null,null,null,null,null,"Nivel de la formación","Estado"]
[null,null,null,null,null,null,null,null,null,null,null,"Cuartil de la Publicación",null,null,"Puntos por cuartil","Cantidad de Documentos","Puntuación","Doctorado","Aprobado"]
[null,null,null,null,null,null,null,null,null,null,null,"Doctorado Graduado",null,null,10,{"$f":"Calculadora!L3","v":0},{"$f":"P3*O3","v":0},"Maestría","No Aprobado"]
[null,null,null,null,null,null,null,null,null,null,null,"Maestría Graduado",null,null,6,{"$f":"Calculadora!L4","v":0},{"$f":"P4*O4","v":0},"Jovén Investigador","Simulación"]
[null,null,null,null,null,null,null,null,null,null,null,"Doctorado Matriculado",null,null,5,{"$f":"Calculadora!L5","v":0},0,"Estado de la Formación"]
[null,null,null,null,null,null,null,null,null,null,null,"Maestría Matriculado",null,null,3,{"$f":"Calculadora!L6","v":0},0]
[null,null,null,null,null,null,null,null,null,null,null,"Jovenes Investigadores Colciencias",null,null,2,{"$f":"Calculadora!L7","v":0},0]
[null,null,null,null,null,null,null,null,null,null,null,"AJovenes Investigadores UdeA",null,null,1,{"$f":"Calculadora!L8","v":0},0,"Finalizado"]
[null,null,null,null,null,null,null,null,null,null,null,"Puntuación Total",null,null,null,{"$f":"SUM(P3:P8)","v":0},{"$f":"SUM(Q3:Q8)","v":0},"Matriculado"]
[null,null,null,null,null,null,null,null,null,null,null,null,null,null,null,null,null,"No Aplica"]
[null,null,null,null,null,null,null,null,null,null,null,"Instrucciones"]
[null,null,null,null,null,null,null,null,null,null,null,"Columna","Descripción"]
[null,null,null,null,null,null,null,null,null,null,null,"Número","Es un consecutivo. Por favor mantener el orden para facilitar la solicitud de aclaraciones."]
[null,null,null,null,null,null,null,null,null,null,null,"Tipo de producto","Nivel de formación y estado"]
[null,null,null,null,null,null,null,null,null,null,null,"Nombre del Estudiante","Indicar el nombre del estudiante que fue asesorado"]
[null,null,null,null,null,null,null,null,null,null,null,"Identificación del Estudiante","Indicar el número de identificación del estudiante"]
[null,null,null,null,null,null,null,null,null,null,null,"Título del Trabajo","Indicar el número de identificación del estudiante"]
[null,null,null,null,null,null,null,null,null,null,null,"Tutor principal del grupo","Persona que es integrante del grupo y que aparece como autor del producto. Incluir solo uno."]
[]
[null,null,null,null,null,null,null,null,null,null,null,"Medio de Publicación","Dependiendo del tipo de producto:\n\n-En caso de artículos, incluir la revista donde ha sido publicado el artículo.\n-En caso de libros, incluir la editorial donde ha sido publicado el libro.\n-En caso de capítulos de libro, incluir la editorial donde ha sido publicado el capítulo.\n-En caso de patentes, incluir si cuenta con estado de explotación o no.\n-En caso de obras artísticas, incluir el concurso donde ha sido presentada la obra"]
[]
[]
[]
[]
[]
[]
[null,null,null,null,null,null,null,null,null,null,null,"Programa Académico","Programa del cual hace parte el estudiante"]
[null,null,null,null,null,null,null,null,null,null,null,"Año","Año en que ha sido publicada la obra.Solo se admite apartir del 1 de enero 2018"]
[null,null,null,null,null,null,null,null,null,null,null,"Verificación del Centro de Investigación","Este es el espacio donde el centro da el visto bueno para el producto ingresado, una vez ha revisado que la información es verídica y cumple los criterios de los términos de referencia:\n\n-Aprobado, cuando el centro de investigación ha confirmado la información\n-No Aprobado, si el centro no ha dado visto bueno al producto\n-Simulación si el grupo desea estimar si ya cumplió con la puntuación requerida"]
[null,null,null,null,null,null,null,null,null,null,null,"Observaciones","Espacio para realizar observaciones sobre el producto"]
[]
[null,null,null,null,null,null,null,null,null,null,null,"Tipos de producto validados"]
[null,null,null,null,null,null,null,null,null,null,null,"Doctorado Graduado"]
[null,null,null,null,null,null,null,null,null,null,null,"Maestría Graduado"]
[null,null,null,null,null,null,null,null,null,null,null,"Doctorado Matriculado"]
[null,null,null,null,null,null,null,null,null,null,null,"Maestría Matriculado"]
[null,null,null,null,null,null,null,null,null,null,null,"Jóvenes Investigadores Colciencias"]
[null,null,null,null,null,null,null,null,null,null,null,"Jóvenes Investigadores UdeA"]

{"sheet":"Patentes","index":5,"n_rows":24,"n_cols":19,"rows_kept":24,"cut":false,"hidden":false,"merged":[[19,11,19,13],[19,14,25,16],[23,11,25,11],[24,12,25,12],[24,13,25,13],[18,12,18,16],[6,11,6,16],[7,12,7,16],[8,12,8,16],[9,12,9,16],[10,11,11,11],[10,12,11,16],[16,12,16,16],[17,12,17,16],[0,11,0,16],[1,11,1,13],[2,11,2,13],[3,11,3,13],[4,11,4,14],[5,11,5,16],[12,12,12,16],[13,12,13,16],[14,12,14,16],[15,12,15,16]]}
["Número","Título del producto","Autor principal del grupo","Oficina de Radicación","Número de la Radicación","Institución que paga licencia","Estado de Explotación","Año de Radicación","Verificación del Centro de Investigación","Observaciones",null,"Estimación de la Puntuación",null,null,null,null,null,null,"Estado"]
[null,null,null,null,null,null,null,null,null,null,null,"Cuartil de la Publicación",null,null,"Puntos por cuartil","Cantidad de Documentos","Puntuación",null,"Aprobado"]
[null,null,null,null,null,null,null,null,null,null,null,"Explotada",null,null,20,{"$f":"Calculadora!R3","v":0},{"$f":"P3*O3","v":0},null,"No Aprobado"]
[null,null,null,null,null,null,null,null,null,null,null,"No Explotada",null,null,10,{"$f":"Calculadora!R4","v":0},{"$f":"P4*O4","v":0},null,"Simulación"]
[null,null,null,null,null,null,null,null,null,null,null,"Puntuación Total",null,null,null,{"$f":"SUM(P3:P4)","v":0},{"$f":"SUM(Q3:Q4)","v":0}]
[]
[null,null,null,null,null,null,null,null,null,null,null,"Instrucciones"]
[null,null,null,null,null,null,null,null,null,null,null,"Columna","Descripción"]
[null,null,null,null,null,null,null,null,null,null,null,"Número","Es un consecutivo. Por favor mantener el orden para facilitar la solicitud de aclaraciones."]
[null,null,null,null,null,null,null,null,null,null,null,"Título del producto","Título del producto tal y como fue publicado"]
[null,null,null,null,null,null,null,null,null,null,null,"Autor principal del grupo","Persona que es integrante del grupo y que aparece como autor del producto. Incluir solo uno."]
[]
[null,null,null,null,null,null,null,null,null,null,null,"Oficina de radicación","Oficina en la cual se concedió la patente"]
[null,null,null,null,null,null,null,null,null,null,null,"Número de radicación","Número de radicación  asignado por la oficina que concedió la patente"]
[null,null,null,null,null,null,null,null,null,null,null,"Institución que paga licencia","En caso de que la patente esté siendo explotada, incorporar el nombre de la entidad que paga la licencia. En caso de que no lo esté, incorporar No Aplica"]
[null,null,null,null,null,null,null,null,null,null,null,"Estado de Explotación","En caso de que la patente esté siendo explotada, incorporar Explotada. En caso de que no lo esté, incorporar No Explotada "]
[null,null,null,null,null,null,null,null,null,null,null,"Año","Año en que ha sido publicada la obra.Solo se admite apartir del 1 de enero 2018"]
[null,null,null,null,null,null,null,null,null,null,null,"Verificación del Centro de Investigación","Este es el espacio donde el centro da el visto bueno para el producto ingresado, una vez ha revisado que la información es verídica y cumple los criterios de los términos de referencia:\n\n-Aprobado, cuando el centro de investigación ha confirmado la información\n-No Aprobado, si el centro no ha dado visto bueno al producto\n-Simulación si el grupo desea estimar si ya cumplió con la puntuación requerida"]
[null,null,null,null,null,null,null,null,null,null,null,"Observaciones","Espacio para realizar observaciones sobre el producto"]
[]
[null,null,null,null,null,null,null,null,null,null,null,"Tipos de producto validados","Categoría de los productos"]
[null,null,null,null,null,null,null,null,null,null,null,"Explotada","Top"]
[null,null,null,null,null,null,null,null,null,null,null,"No Explotada","Categoría I"]
[null,null,null,null,null,null,null,null,null,null,null,null,"Categoría II"]

{"sheet":"Recursos Obtenidos","index":6,"n_rows":206,"n_cols":19,"rows_kept":206,"cut":false,"hidden":false,"merged":[[14,15,14,16],[19,11,19,13],[19,14,25,14],[23,11,25,11],[24,12,25,12],[24,13,25,13],[18,12,18,14],[15,12,15,14],[17,12,17,14],[16,12,16,14],[5,11,5,14],[6,11,6,14],[7,12,7,14],[8,12,8,14],[9,12,9,14],[10,11,11,11],[10,12,11,14],[12,12,12,14],[13,12,13,14],[14,12,14,14],[0,11,0,14],[1,11,1,13],[2,11,2,13],[3,11,3,13],[4,11,4,13]]}
["Número","Proyecto","Investigador Principal","Nombre de la Institución Financiadora","Origen de la Entidad","Año de inicio del proyecto","Recursos Obtenidos","Verificación del Centro de Investigación","Puntos asignados","Observaciones",null,"Estimación de la Puntuación",null,null,null,"Tipo de Institución Financiadora",null,null,"Estado"]
[null,null,null,null,null,null,null,null,{"$f":"IF(E2=\"Entidad Nacional\",G2/12000000,IF(E2=\"Entidad Internacional\",G2/10000000,0))","v":0},null,null,"Cuartil de la Publicación",null,null,"Puntuación","Extranjera",null,null,"Aprobado"]
[null,null,null,null,null,null,null,null,{"$f":"IF(E3=\"Entidad Nacional\",G3/12000000,IF(E3=\"Entidad Internacional\",G3/10000000,0))","v":0},null,null,"Recursos Internacionales",null,null,{"$f":"Calculadora!O3","v":0},"Naturaleza de la Institución Financiadora",null,null,"No Aprobado"]
[null,null,null,null,null,null,null,null,0,null,null,"Recursos Nacionales",null,null,{"$f":"Calculadora!O4","v":0},"Empresa",null,null,"Simulación"]
[null,null,null,null,null,null,null,null,0,null,null,"Puntuación Total",null,null,{"$f":"IF(SUM(O3:O4)>100,100,SUM(O3:O4))","v":0},"ONG"]
[null,null,null,null,null,null,null,null,0,null,null,null,null,null,null,"Hospital"]
[null,null,null,null,null,null,null,null,0,null,null,"Instrucciones",null,null,null,"Educación"]
[null,null,null,null,null,null,null,null,0,null,null,"Columna","Descripción"]
[null,null,null,null,null,null,null,null,0,null,null,"Número","Es un consecutivo. Por favor mantener el orden para facilitar la solicitud de aclaraciones."]
[null,null,null,null,null,null,null,null,0,null,null,"Proyecto","Indicar el título del proyecto que obtuvo recursos"]
[null,null,null,null,null,null,null,null,0,null,null,"Autor principal del grupo","Persona que es integrante del grupo y que aparece como autor del producto. Incluir solo uno."]
[null,null,null,null,null,null,null,null,0]
[null,null,null,null,null,null,null,null,0,null,null,"Nombre de la Institución Financiadora","Indicar el nombre de la entidad que financia los recursos"]
[null,null,null,null,null,null,null,null,0,null,null,"Origen de la entidad","Elegir si la entidad es de orden nacional o internacional"]
[null,null,null,null,null,null,null,null,0,null,null,"Año","Año en que ha sido publicada la obra.Solo se admite apartir del 1 de enero 2018"]
[null,null,null,null,null,null,null,null,0,null,null,"Recursos obtenidos","Indicar cuántos recursos aportó la entidad al proyecto"]
[null,null,null,null,null,null,null,null,0,null,null,"Verificación del Centro de Investigación","Este es el espacio donde el centro da el visto bueno para el producto ingresado, una vez ha revisado que la información es verídica y cumple los criterios de los términos de referencia:\n\n-Aprobado, cuando el centro de investigación ha confirmado la información\n-No Aprobado, si el centro no ha dado visto bueno al producto\n-Simulación si el grupo desea estimar si ya cumplió con la puntuación requerida"]
[null,null,null,null,null,null,null,null,0,null,null,"Puntos asignados","Calcula los puntos que se conceden por los recursos"]
[null,null,null,null,null,null,null,null,0,null,null,"Observaciones","Espacio para realizar observaciones sobre el producto"]
[null,null,null,null,null,null,null,null,0]
[null,null,null,null,null,null,null,null,0,null,null,"Tipos de producto validados","Categoría de los productos"]
[null,null,null,null,null,null,null,null,0,null,null,"Entidad Internacional","Top"]
[null,null,null,null,null,null,null,null,0,null,null,"Entidad Nacional","Categoría I"]
[null,null,null,null,null,null,null,null,0,null,null,null,"Categoría II"]
[null,null,null,null,null,null,null,null,0]
[null,null,null,null,null,null,null,null,0]
[null,null,null,null,null,null,null,null,0]
[null,null,null,null,null,null,null,null,0]
[null,null,null,null,null,null,null,null,0]
[null,null,null,null,null,null,null,null,0]
[null,null,null,null,null,null,null,null,0]
[null,null,null,null,null,null,null,null,0]
[null,null,null,null,null,null,null,null,0]
[null,null,null,null,null,null,null,null,0]
[null,null,null,null,null,null,null,null,0]
[null,null,null,null,null,null,null,null,0]
[null,null,null,null,null,null,null,null,0]
[null,null,null,null,null,null,null,null,0]
[null,null,null,null,null,null,null,null,0]
[null,null,null,null,null,null,null,null,0]
[null,null,null,null,null,null,null,null,0]
[null,null,null,null,null,null,null,null,0]
[null,null,null,null,null,null,null,null,0]
[null,null,null,null,null,null,null,null,0]
[null,null,null,null,null,null,null,null,0]
[null,null,null,null,null,null,null,null,0]
[null,null,null,null,null,null,null,null,0]
[null,null,null,null,null,null,null,null,0]
[null,null,null,null,null,null,null,null,0]
[null,null,null,null,null,null,null,null,0]
[null,null,null,null,null,null,null,null,0]
[null,null,null,null,null,null,null,null,0]
[null,null,null,null,null,null,null,null,0]
[null,null,null,null,null,null,null,null,0]
[null,null,null,null,null,null,null,null,0]
[null,null,null,null,null,null,null,null,0]
[null,null,null,null,null,null,null,null,0]
[null,null,null,null,null,null,null,null,0]
[null,null,null,null,null,null,null,null,0]
[null,null,null,null,null,null,null,null,0]
[null,null,null,null,null,null,null,null,0]
[null,null,null,null,null,null,null,null,0]
[null,null,null,null,null,null,null,null,0]
[null,null,null,null,null,null,null,null,0]
[null,null,null,null,null,null,null,null,0]
[null,null,null,null,null,null,null,null,0]
[null,null,null,null,null,null,null,null,{"$f":"IF(E67=\"Entidad Nacional\",G67/12000000,IF(E67=\"Entidad Internacional\",G67/10000000,0))","v":0}]
[null,null,null,null,null,null,null,null,0]
[null,null,null,null,null,null,null,null,0]
[null,null,null,null,null,null,null,null,0]
[null,null,null,null,null,null,null,null,0]
[null,null,null,null,null,null,null,null,0]
[null,null,null,null,null,null,null,null,0]
[null,null,null,null,null,null,null,null,0]
[null,null,null,null,null,null,null,null,0]
[null,null,null,null,null,null,null,null,0]
[null,null,null,null,null,null,null,null,0]
[null,null,null,null,null,null,null,null,0]
[null,null,null,null,null,null,null,null,0]
[null,null,null,null,null,null,null,null,0]
[null,null,null,null,null,null,null,null,0]
[null,null,null,null,null,null,null,null,0]
[null,null,null,null,null,null,null,null,0]
[null,null,null,null,null,null,null,null,0]
[null,null,null,null,null,null,null,null,0]
[null,null,null,null,null,null,null,null,0]
[null,null,null,null,null,null,null,null,0]
[null,null,null,null,null,null,null,null,0]
[null,null,null,null,null,null,null,null,0]
[null,null,null,null,null,null,null,null,0]
[null,null,null,null,null,null,null,null,0]
[null,null,null,null,null,null,null,null,0]
[null,null,null,null,null,null,null,null,0]
[null,null,null,null,null,null,null,null,0]
[null,null,null,null,null,null,null,null,0]
[null,null,null,null,null,null,null,null,0]
[null,null,null,null,null,null,null,null,0]
[null,null,null,null,null,null,null,null,0]
[null,null,null,null,null,null,null,null,0]
[null,null,null,null,null,null,null,null,0]
[null,null,null,null,null,null,null,null,0]
[null,null,null,null,null,null,null,null,0]
[null,null,null,null,null,null,null,null,0]
[null,null,null,null,null,null,null,null,0]
[null,null,null,null,null,null,null,null,0]
[null,null,null,null,null,null,null,null,0]
[null,null,null,null,null,null,null,null,0]
[null,null,null,null,null,null,null,null,0]
[null,null,null,null,null,null,null,null,0]
[null,null,null,null,null,null,null,null,0]
[null,null,null,null,null,null,null,null,0]
[null,null,null,null,null,null,null,null,0]
[null,null,null,null,null,null,null,null,0]
[null,null,null,null,null,null,null,null,0]
[null,null,null,null,null,null,null,null,0]
[null,null,null,null,null,null,null,null,0]
[null,null,null,null,null,null,null,null,0]
[null,null,null,null,null,null,null,null,0]
[null,null,null,null,null,null,null,null,0]
[null,null,null,null,null,null,null,null,0]
[null,null,null,null,null,null,null,null,0]
[null,null,null,null,null,null,null,null,0]
[null,null,null,null,null,null,null,null,0]
[null,null,null,null,null,null,null,null,0]
[null,null,null,null,null,null,null,null,0]
[null,null,null,null,null,null,null,null,0]
[null,null,null,null,null,null,null,null,0]
[null,null,null,null,null,null,null,null,0]
[null,null,null,null,null,null,null,null,0]
[null,null,null,null,null,null,null,null,0]
[null,null,null,null,null,null,null,null,{"$f":"IF(E131=\"Entidad Nacional\",G131/12000000,IF(E131=\"Entidad Internacional\",G131/10000000,0))","v":0}]
[null,null,null,null,null,null,null,null,0]
[null,null,null,null,null,null,null,null,0]
[null,null,null,null,null,null,null,null,0]
[null,null,null,null,null,null,null,null,0]
[null,null,null,null,null,null,null,null,0]
[null,null,null,null,null,null,null,null,0]
[null,null,null,null,null,null,null,null,0]
[null,null,null,null,null,null,null,null,0]
[null,null,null,null,null,null,null,null,0]
[null,null,null,null,null,null,null,null,0]
[null,null,null,null,null,null,null,null,0]
[null,null,null,null,null,null,null,null,0]
[null,null,null,null,null,null,null,null,0]
[null,null,null,null,null,null,null,null,0]
[null,null,null,null,null,null,null,null,0]
[null,null,null,null,null,null,null,null,0]
[null,null,null,null,null,null,null,null,0]
[null,null,null,null,null,null,null,null,0]
[null,null,null,null,null,null,null,null,0]
[null,null,null,null,null,null,null,null,0]
[null,null,null,null,null,null,null,null,0]
[null,null,null,null,null,null,null,null,0]
[null,null,null,null,null,null,null,null,0]
[null,null,null,null,null,null,null,null,0]
[null,null,null,null,null,null,null,null,0]
[null,null,null,null,null,null,null,null,0]
[null,null,null,null,null,null,null,null,0]
[null,null,null,null,null,null,null,null,0]
[null,null,null,null,null,null,null,null,0]
[null,null,null,null,null,null,null,null,0]
[null,null,null,null,null,null,null,null,0]
[null,null,null,null,null,null,null,null,0]
[null,null,null,null,null,null,null,null,0]
[null,null,null,null,null,null,null,null,0]
[null,null,null,null,null,null,null,null,0]
[null,null,null,null,null,null,null,null,0]
[null,null,null,null,null,null,null,null,0]
[null,null,null,null,null,null,null,null,0]
[null,null,null,null,null,null,null,null,0]
[null,null,null,null,null,null,null,null,0]
[null,null,null,null,null,null,null,null,0]
[null,null,null,null,null,null,null,null,0]
[null,null,null,null,null,null,null,null,0]
[null,null,null,null,null,null,null,null,0]
[null,null,null,null,null,null,null,null,0]
[null,null,null,null,null,null,null,null,0]
[null,null,null,null,null,null,null,null,0]
[null,null,null,null,null,null,null,null,0]
[null,null,null,null,null,null,null,null,0]
[null,null,null,null,null,null,null,null,0]
[null,null,null,null,null,null,null,null,0]
[null,null,null,null,null,null,null,null,0]
[null,null,null,null,null,null,null,null,0]
[null,null,null,null,null,null,null,null,0]
[null,null,null,null,null,null,null,null,0]
[null,null,null,null,null,null,null,null,0]
[null,null,null,null,null,null,null,null,0]
[null,null,null,null,null,null,null,null,0]
[null,null,null,null,null,null,null,null,0]
[null,null,null,null,null,null,null,null,0]
[null,null,null,null,null,null,null,null,0]
[null,null,null,null,null,null,null,null,0]
[null,null,null,null,null,null,null,null,0]
[null,null,null,null,null,null,null,null,{"$f":"IF(E195=\"Entidad Nacional\",G195/12000000,IF(E195=\"Entidad Internacional\",G195/10000000,0))","v":0}]
[null,null,null,null,null,null,null,null,0]
[null,null,null,null,null,null,null,null,0]
[null,null,null,null,null,null,null,null,0]
[null,null,null,null,null,null,null,null,0]
[null,null,null,null,null,null,null,null,0]
[null,null,null,null,null,null,null,null,0]
[null,null,null,null,null,null,null,null,0]
[null,null,null,null,null,null,null,null,0]
[null,null,null,null,null,null,null,null,0]
[null,null,null,null,null,null,null,null,0]
[null,null,null,null,null,null,null,null,0]

{"sheet":"Calculadora","index":7,"n_rows":15,"n_cols":18,"rows_kept":15,"cut":false,"hidden":true,"merged":[[0,15,0,17],[2,15,3,15],[4,15,5,15],[0,12,0,14],[2,12,3,12],[4,12,4,13],[21,9,21,10],[2,9,7,9],[8,9,13,9],[14,9,14,10],[3,6,5,6],[6,6,8,6],[9,6,9,7],[6,0,9,0],[10,0,10,1],[2,3,4,3],[5,3,7,3],[0,9,0,11],[0,0,0,2],[2,0,5,0],[8,3,8,4],[0,6,0,8],[0,3,0,5]]}
["Generación de Nuevo Conocimiento",null,null,"Desarrollo Tecnológico e Innovación",null,null,"Apropiación Social del Conocimiento",null,null,"Formación",null,null,"Recursos Externos",null,null,"Patentes"]
["Puntos por revista","Cuartiles","Cantidad de artículos","Puntos por revista","Cuartiles","Cantidad de artículos","Puntos por revista","Cuartiles","Cantidad de artículos","Puntos por revista","Cuartiles","Cantidad de artículos","Puntos por revista","Cuartiles","Cantidad de artículos","Puntos por revista","Cuartiles","Cantidad de artículos"]
["Total Publicaciones","Top",{"$f":"COUNTIFS('Productos de Nuevo Conocimiento'!J:J,Calculadora!B3,'Productos de Nuevo Conocimiento'!I:I,\"Aprobado\")+COUNTIFS('Productos de Nuevo Conocimiento'!J:J,Calculadora!B3,'Productos de Nuevo Conocimiento'!I:I,\"Simulación\")","v":0},"Total Publicaciones","Top",{"$f":"COUNTIFS(DTI!H:H,Calculadora!E3,DTI!G:G,\"Aprobado\")+COUNTIFS(DTI!H:H,Calculadora!E3,DTI!G:G,\"Simulación\")","v":0},2017,"Categoría II",{"$f":"COUNTIFS('Apropiación Social'!F:F,Calculadora!G3,'Apropiación Social'!I:I,Calculadora!H3)","v":0},"Total Publicaciones","Doctorado Graduado",{"$f":"COUNTIFS(Formación!B:B,Calculadora!K3,Formación!I:I,\"Aprobado\")+COUNTIFS(Formación!B:B,Calculadora!K3,Formación!I:I,\"Simulación\")","v":0},"Puntajes por cuartil","Entidad Internacional",{"$f":"SUMIFS('Recursos Obtenidos'!I:I,'Recursos Obtenidos'!E:E,Calculadora!N3,'Recursos Obtenidos'!H:H,\"Aprobado\")+SUMIFS('Recursos Obtenidos'!I:I,'Recursos Obtenidos'!E:E,Calculadora!N3,'Recursos Obtenidos'!H:H,\"Simulación\")","v":0},"Total Publicaciones","Top",{"$f":"COUNTIFS(Patentes!G:G,Calculadora!Q3,Patentes!I:I,\"Aprobado\")+COUNTIFS(Patentes!G:G,Calculadora!Q3,Patentes!I:I,\"Simulación\")","v":0}]
[null,"Categoría I",{"$f":"COUNTIFS('Productos de Nuevo Conocimiento'!J:J,Calculadora!B4,'Productos de Nuevo Conocimiento'!I:I,\"Aprobado\")+COUNTIFS('Productos de Nuevo Conocimiento'!J:J,Calculadora!B4,'Productos de Nuevo Conocimiento'!I:I,\"Simulación\")","v":0},null,"Categoría I",{"$f":"COUNTIFS(DTI!H:H,Calculadora!E4,DTI!G:G,\"Aprobado\")+COUNTIFS(DTI!H:H,Calculadora!E4,DTI!G:G,\"Simulación\")","v":0},"Total Publicaciones","Top",{"$f":"COUNTIFS('Apropiación Social'!I:I,Calculadora!H4,'Apropiación Social'!H:H,\"Aprobado\")+COUNTIFS('Apropiación Social'!I:I,Calculadora!H4,'Apropiación Social'!H:H,\"Simulación\")","v":0},null,"Maestría Graduado",{"$f":"COUNTIFS(Formación!B:B,Calculadora!K4,Formación!I:I,\"Aprobado\")+COUNTIFS(Formación!B:B,Calculadora!K4,Formación!I:I,\"Simulación\")","v":0},null,"Entidad Nacional",{"$f":"SUMIFS('Recursos Obtenidos'!I:I,'Recursos Obtenidos'!E:E,Calculadora!N4,'Recursos Obtenidos'!H:H,\"Aprobado\")+SUMIFS('Recursos Obtenidos'!I:I,'Recursos Obtenidos'!E:E,Calculadora!N4,'Recursos Obtenidos'!H:H,\"Simulación\")","v":0},null,"Categoría I",{"$f":"COUNTIFS(Patentes!G:G,Calculadora!Q4,Patentes!I:I,\"Aprobado\")+COUNTIFS(Patentes!G:G,Calculadora!Q4,Patentes!I:I,\"Simulación\")","v":0}]
[null,"Categoría II",{"$f":"COUNTIFS('Productos de Nuevo Conocimiento'!J:J,Calculadora!B5,'Productos de Nuevo Conocimiento'!I:I,\"Aprobado\")+COUNTIFS('Productos de Nuevo Conocimiento'!J:J,Calculadora!B5,'Productos de Nuevo Conocimiento'!I:I,\"Simulación\")","v":0},null,"Categoría II",{"$f":"COUNTIFS(DTI!H:H,Calculadora!E5,DTI!G:G,\"Aprobado\")+COUNTIFS(DTI!H:H,Calculadora!E5,DTI!G:G,\"Simulación\")","v":0},null,"Categoría I",{"$f":"COUNTIFS('Apropiación Social'!I:I,Calculadora!H5,'Apropiación Social'!H:H,\"Aprobado\")+COUNTIFS('Apropiación Social'!I:I,Calculadora!H5,'Apropiación Social'!H:H,\"Simulación\")","v":0},null,"Doctorado Matriculado",{"$f":"COUNTIFS(Formación!B:B,Calculadora!K5,Formación!I:I,\"Aprobado\")+COUNTIFS(Formación!B:B,Calculadora!K5,Formación!I:I,\"Simulación\")","v":0},"Total de Puntuación",null,{"$f":"IF(SUM(O3:O4)>100,100,SUM(O3:O4))","v":0},"Puntajes por cuartil","Top",{"$f":"R3*20","v":0}]
[null,"Categoría III",{"$f":"COUNTIFS('Productos de Nuevo Conocimiento'!J:J,Calculadora!B6,'Productos de Nuevo Conocimiento'!I:I,\"Aprobado\")+COUNTIFS('Productos de Nuevo Conocimiento'!J:J,Calculadora!B6,'Productos de Nuevo Conocimiento'!I:I,\"Simulación\")","v":0},"Puntajes por cuartil","Top",{"$f":"F3*10","v":0},null,"Categoría II",{"$f":"COUNTIFS('Apropiación Social'!I:I,Calculadora!H6,'Apropiación Social'!H:H,\"Aprobado\")+COUNTIFS('Apropiación Social'!I:I,Calculadora!H6,'Apropiación Social'!H:H,\"Simulación\")","v":0},null,"Maestría Matriculado",{"$f":"COUNTIFS(Formación!B:B,Calculadora!K6,Formación!I:I,\"Aprobado\")+COUNTIFS(Formación!B:B,Calculadora!K6,Formación!I:I,\"Simulación\")","v":0},null,null,null,null,"Categoría I",{"$f":"R4*10","v":0}]
["Puntajes por cuartil","Top",{"$f":"C3*10","v":0},null,"Categoría I",{"$f":"F4*6","v":0},"Puntajes por cuartil","Top",{"$f":"I4*5","v":0},null,"Jóvenes Investigadores Colciencias",{"$f":"COUNTIFS(Formación!B:B,Calculadora!K7,Formación!I:I,\"Aprobado\")+COUNTIFS(Formación!B:B,Calculadora!K7,Formación!I:I,\"Simulación\")","v":0},null,null,null,"Total de Puntuación",null,{"$f":"SUM(R5:R6)","v":0}]
[null,"Categoría I",{"$f":"C4*6","v":0},null,"Categoría II",{"$f":"F5*3","v":0},null,"Categoría I",{"$f":"I5*3","v":0},null,"Jóvenes Investigadores UdeA",{"$f":"COUNTIFS(Formación!B:B,Calculadora!K8,Formación!I:I,\"Aprobado\")+COUNTIFS(Formación!B:B,Calculadora!K8,Formación!I:I,\"Simulación\")","v":0}]
[null,"Categoría II",{"$f":"C5*3","v":0},"Total de Puntuación",null,{"$f":"SUM(F6:F8)","v":0},null,"Categoría II",{"$f":"I6*1","v":0},"Puntajes por cuartil","Doctorado Graduado",{"$f":"L3*10","v":0}]
[null,"Categoría III",{"$f":"C6*2","v":0},null,null,null,"Total de Puntuación",null,{"$f":"SUM(I7:I9)","v":0},null,"Maestría Graduado",{"$f":"L4*6","v":0}]
["Total de Puntuación",null,{"$f":"SUM(C7:C10)","v":0},null,null,null,null,null,null,null,"Doctorado Matriculado",{"$f":"L5*5","v":0}]
[null,null,null,null,null,null,null,null,null,null,"Maestría Matriculado",{"$f":"L6*3","v":0}]
[null,null,null,null,null,null,null,null,null,null,"Jóvenes Investigadores Colciencias",{"$f":"L7*2","v":0}]
[null,null,null,null,null,null,null,null,null,null,"Jóvenes Investigadores UdeA",{"$f":"L8*1","v":0}]
[null,null,null,null,null,null,null,null,null,"Total de Puntuación",null,{"$f":"SUM(L9:L14)","v":0}]

{"sheet":"Resultado","index":8,"n_rows":22,"n_cols":14,"rows_kept":22,"cut":false,"hidden":false,"merged":[[19,10,20,10],[17,13,21,15],[0,8,2,14],[3,8,4,14],[5,8,5,14],[6,8,6,14],[8,9,8,10],[9,9,9,10],[11,9,11,10],[12,9,12,10],[13,9,13,10],[14,9,14,10],[16,8,16,9],[16,10,16,11]]}
[null,null,null,null,null,null,null,null,"CÓMITE PARA EL DESARROLLO DE LA INVESTIGACIÓN -CODI-"]
[]
[]
[null,null,null,null,null,null,null,null,"VICERRECTORÍA DE INVESTIGACIÓN"]
[]
[null,null,null,null,null,null,null,null,"ESTRATEGIA DE SOSTENIBILIDAD 2018-2019"]
[null,null,null,null,null,null,null,null,"PUNTOS OBTENIDOS POR EL GRUPO DE INVESTIGACIÓN"]
[]
[null,null,null,null,null,null,null,null,"Puntaje en Generación de Nuevo Conocimiento",{"$f":"Calculadora!C11","v":0}]
[null,null,null,null,null,null,null,null,"Puntaje en Formación de Recursos Humanos",{"$f":"Calculadora!L15","v":0}]
[null,null,null,null,null,null,null,null,"Puntaje en Recursos Obtenidos",{"$f":"SUM('Recursos Obtenidos'!G:G)","v":0},{"$f":"Calculadora!O5","v":0}]
[null,null,null,null,null,null,null,null,"Puntaje en Patentes",null,{"$f":"Patentes!Q5","v":0}]
[null,null,null,null,null,null,null,null,"Puntaje en Desarrollo Tecnológico e Innovación",null,{"$f":"Calculadora!F9","v":0}]
[null,null,null,null,null,null,null,null,"Puntaje en Apropiación Social del Conocimiento",null,{"$f":"Calculadora!I10","v":0}]
[null,null,null,null,null,null,null,null,"TOTAL DE PUNTAJE OBTENIDO",{"$f":"SUM(K9:K14)","v":0}]
[]
[null,null,null,null,null,null,null,null,"RESULTADO FINAL",null,"COMPROMISOS ASUMIDOS"]
[null,null,null,null,null,null,null,null,"¿Cumple con la cantidad de puntos mínimos comprometidos en producción?",{"$f":"IF((J9+J12)>=L18,\"Cumple con el Compromiso\",\"No Cumple con el Compromiso\")","v":"Cumple con el Compromiso"},"Puntuación mínima en producción",null,null,"En el campo compromisos asumidos debe ingresar la cantidad de grupos a los cuales se comprometió el grupo de ivnestigación"]
[null,null,null,null,null,null,null,null,"¿Cumple con la cantidad mínima de puntos comprometidos en formación?",{"$f":"IF(J10>=L19,\"Cumple con el Compromiso\",\"No Cumple con el Compromiso\")","v":"Cumple con el Compromiso"},"Puntuación mínima en formación"]
[null,null,null,null,null,null,null,null,"¿Cumple con la cantidad mínima de puntos en recursos externos, o recuperó la misma cantidad de los recursos asignados?",{"$f":"IF(J11>=L20,\"Cumple con el Compromiso\",IF(K11>=L21,\"Cumple con el Compromiso\",\"No Cumple con el Compromiso\"))","v":"Cumple con el Compromiso"},"Puntuación mínima en recursos (Opcional)"]
[null,null,null,null,null,null,null,null,"¿Cumple con el total de puntos comprometidos?",{"$f":"IF(J15>=L22,\"Cumple con el compromiso\",\"No Cumple con el compromiso\")","v":"Cumple con el compromiso"}]
[null,null,null,null,null,null,null,null,"Decisión",{"$f":"IF(J18=\"Cumple con el Compromiso\",IF(J19=\"Cumple con el Compromiso\",IF(J20=\"Cumple con el Compromiso\",IF(J21=\"Cumple con el Compromiso\",\"Cumple con el Compromiso\",\"No Cumple con el Compromiso\"),\"No Cumple con el Compromiso\"),\"No Cumple con el Compromiso\"),\"No Cumple con el Compromiso\")","v":"Cumple con el Compromiso"},"Puntuación comprometida"]